fUSD/lending_fUSD_20241121
["ID","MTS","AMOUNT","RATE_DAILY","PERIOD"]
[342963175,1732229447451,-677.50898,0.00042688,30]
[342963176,1732229447460,-1107.064855,0.00042736,14]
[342963177,1732229447469,-1107.064855,0.00042736,14]
[342963178,1732229447479,-166.248804,0.00042738,14]
[342963180,1732229447488,-166.248804,0.00042738,14]
[342963181,1732229447497,-500.0,0.00042738,11]
[342963183,1732229447507,-700.0,0.00042746,16]
[342963185,1732229447516,-700.0,0.00042746,16]
[342963187,1732229447525,-700.0,0.00042746,16]
[342963189,1732229447535,-700.0,0.00042746,16]
[342963191,1732229447544,-700.0,0.00042746,16]
[342963193,1732229447553,-700.0,0.00042746,16]
[342963195,1732229447563,-700.0,0.00042746,16]
[342963197,1732229447572,-700.0,0.00042746,16]
[342963199,1732229447581,-700.0,0.00042746,16]
[342963201,1732229447591,-700.0,0.00042746,16]
[342963203,1732229447601,-433.33,0.00042778,30]
[342963205,1732229447611,-391.27,0.0004281,11]
[342963207,1732229447620,-590.79,0.0004281,11]
[342963209,1732229447631,-500.0,0.0004281,11]
[342963211,1732229447640,-1765.22,0.0004281,11]
[342963213,1732229447650,-500.0,0.0004281,11]
[342963215,1732229447660,-751.76,0.0004281,2]
[342963217,1732229447669,-2212.16,0.0004281,11]
[342963219,1732229447679,-271.52,0.0004281,11]
[342963220,1732229447689,-622.88,0.0004281,11]
[342963222,1732229447698,-1607.83,0.0004281,11]
[342963224,1732229447708,-3200.0,0.000429,15]
[342963226,1732229447717,-151.0,0.0004291,14]
[342963228,1732229447727,-185.572498,0.0004291,14]
[342963230,1732229447737,-185.572498,0.0004291,14]
[342963232,1732229447747,-500.0,0.0004291,11]
[342963234,1732229447757,-1075.786781,0.0004291,14]
[342963236,1732229447767,-1075.786781,0.0004291,14]
[342963238,1732229447776,-151.0,0.0004291,14]
[342963240,1732229447785,-162.752538,0.0004291,14]
[342963242,1732229447795,-647.58,0.0004291,11]
[342963244,1732229447805,-500.0,0.0004291,11]
[342963246,1732229447814,-500.0,0.0004291,11]
[342963248,1732229447823,-175.439274,0.00042911,14]
[342963250,1732229447833,-2560.13106583,0.00043,30]
[342963252,1732229447842,-1000.0,0.00043,13]
[342963254,1732229447852,-1000.0,0.00043,13]
[342963256,1732229447862,-1000.0,0.00043,13]
[342963258,1732229447872,-1000.0,0.00043,13]
[342963260,1732229447882,-1000.0,0.00043,13]
[342963262,1732229447892,-200.0,0.00043,120]
[342963264,1732229447902,-159.75,0.00043,30]
[342963266,1732229447912,-1421.8814191,0.00043,120]
[342963268,1732229447922,-654.11570379,0.00043,120]
[342963270,1732229447931,-376.1,0.00043002,60]
[342963272,1732229447940,-500.0,0.00043012,11]
[342963274,1732229447951,-968.18,0.00043052,30]
[342963276,1732229447960,-590.79,0.00043084,11]
[342963278,1732229447970,-500.0,0.00043084,11]
[342963280,1732229447980,-1765.22,0.00043084,11]
[342963282,1732229447990,-500.0,0.00043084,11]
[342963284,1732229447999,-751.76,0.00043084,2]
[342963286,1732229448010,-2212.16,0.00043084,11]
[342963288,1732229448019,-622.88,0.00043084,11]
[342963290,1732229448029,-1607.83,0.00043084,11]
[342963292,1732229448039,-150.237,0.00043139,2]
[342963294,1732229448048,-1262.94,0.00043139,2]
[342963296,1732229448058,-567.261,0.00043139,2]
[342963298,1732229448068,-211.056,0.00043139,2]
[342963300,1732229448079,-1994.0,0.00043139,2]
[342963302,1732229448088,-629.0,0.00043139,2]
[342963304,1732229448098,-643.997,0.00043139,2]
[342963306,1732229448107,-815.0,0.00043139,2]
[342963308,1732229448117,-3748.0,0.00043139,2]
[342963310,1732229448127,-3514.0,0.00043139,2]
[342963312,1732229448137,-150.0,0.00043139,2]
[342963314,1732229448149,-5940.0,0.00043139,2]
[342963315,1732229448159,-420.299,0.00043139,2]
[342963317,1732229448168,-13657.0,0.00043139,2]
[342963319,1732229448178,-166.08,0.00043139,2]
[342963321,1732229448190,-151.0,0.00043139,14]
[342963323,1732229448200,-175.712065,0.00043139,14]
[342963325,1732229448211,-175.712065,0.00043139,14]
[342963327,1732229448221,-500.0,0.00043162,120]
[342963329,1732229448230,-500.0,0.00043184,11]
[342963331,1732229448240,-213.96,0.00043184,11]
[342963333,1732229448249,-500.0,0.00043184,11]
[342963335,1732229448259,-151.0,0.00043185,14]
[342963337,1732229448269,-151.0,0.00043185,14]
[342963339,1732229448278,-282.117548,0.00043185,14]
[342963341,1732229448288,-31546.2721501,0.0004328,120]
[342963343,1732229448298,-151.0,0.0004328,14]
[342963345,1732229448308,-151.0,0.0004328,14]
[342963347,1732229448319,-278.345461,0.0004328,14]
[342963349,1732229448329,-1107.064855,0.0004328,14]
[342963351,1732229448339,-1107.064855,0.0004328,14]
[342963353,1732229448348,-166.248804,0.0004328,14]
[342963355,1732229448358,-166.248804,0.0004328,14]
[342963357,1732229448367,-162.570648,0.0004328,14]
[342963359,1732229448376,-185.572498,0.0004328,14]
[342963361,1732229448386,-185.572498,0.0004328,14]
[342963363,1732229448395,-1075.786781,0.0004328,14]
[342963365,1732229448405,-1075.786781,0.0004328,14]
[342963367,1732229448415,-151.0,0.0004328,14]
[342963369,1732229448426,-500.0,0.00043286,11]
[342963371,1732229448436,-500.0,0.00043287,120]
[342963373,1732229448445,-590.79,0.00043358,11]
[342963375,1732229448455,-493.61,0.00043358,11]
[342963377,1732229448465,-1765.22,0.00043358,11]
[342963379,1732229448474,-500.0,0.00043358,11]
[342963381,1732229448484,-751.76,0.00043358,2]
[342963383,1732229448494,-2212.16,0.00043358,11]
[342963385,1732229448503,-622.88,0.00043358,11]
[342963387,1732229448512,-1607.83,0.00043358,11]
[342963389,1732229448522,-166.83,0.00043408,2]
[342963391,1732229448532,-2000.0,0.00043451,120]
[342963393,1732229448541,-200.0,0.00043451,120]
[342963395,1732229448552,-500.0,0.00043458,11]
[342963397,1732229448562,-472.81,0.00043458,11]
[342963399,1732229448572,-175.712065,0.00043458,14]
[342963401,1732229448582,-175.712065,0.00043458,14]
[342963403,1732229448591,-154.4,0.00043459,14]
[342963405,1732229448600,-169.240888,0.00043459,14]
[342963407,1732229448610,-169.240888,0.00043459,14]
[342963409,1732229448619,-166.408516,0.00043459,14]
[342963411,1732229448629,-150.0,0.00043494,2]
[342963413,1732229448639,-169.56064,0.00043515,14]
[342963415,1732229448648,-9328.25,0.00043536,7]
[342963416,1732229448658,-500.0,0.0004356,11]
[342963419,1732229448668,-590.79,0.00043632,11]
[342963420,1732229448680,-1765.22,0.00043632,11]
[342963422,1732229448690,-500.0,0.00043632,11]
[342963424,1732229448699,-751.76,0.00043632,2]
[342963426,1732229448709,-2212.16,0.00043632,11]
[342963428,1732229448719,-622.88,0.00043632,11]
[342963430,1732229448728,-1607.83,0.00043632,11]
[342963432,1732229448738,-268.49,0.00043639,120]
[342963434,1732229448747,-152.0,0.00043647,3]
[342963436,1732229448758,-377.03742909,0.00043687,2]
[342963438,1732229448768,-500.0,0.00043732,11]
[342963440,1732229448777,-929.23,0.00043806,2]
[342963442,1732229448786,-500.0,0.00043834,11]
[342963444,1732229448796,-224.53294926,0.00043836,60]
[342963446,1732229448806,-590.79,0.00043906,11]
[342963448,1732229448816,-1765.22,0.00043906,11]
[342963450,1732229448825,-500.0,0.00043906,11]
[342963452,1732229448835,-751.76,0.00043906,2]
[342963454,1732229448844,-2212.16,0.00043906,11]
[342963456,1732229448853,-622.88,0.00043906,11]
[342963472,1732229448999,-1607.83,0.00043906,11]
[342963474,1732229449010,-500.0,0.00043945,120]
[342963476,1732229449019,-500.0,0.00044,120]
[342963478,1732229449029,-508.202811,0.00044,57]
[342963480,1732229449039,-500.0,0.00044006,11]
[342963482,1732229449048,-151.0,0.00044007,14]
[342963484,1732229449058,-151.0,0.00044007,14]
[342963486,1732229449068,-151.0,0.00044007,14]
[342963488,1732229449077,-500.0,0.00044108,11]
[342963490,1732229449089,-2212.16,0.00044179,11]
[342963492,1732229449098,-622.88,0.00044179,11]
[342963494,1732229449109,-590.79,0.0004418,11]
[342963496,1732229449118,-1765.22,0.0004418,11]
[342963498,1732229449128,-500.0,0.0004418,11]
[342963500,1732229449139,-751.76,0.0004418,2]
[342963502,1732229449152,-1607.83,0.0004418,11]
[342963504,1732229449161,-352.329,0.0004424,120]
[342963506,1732229449171,-16838.66,0.00044255,7]
[342963508,1732229449180,-500.0,0.0004428,11]
[342963510,1732229449190,-150.0,0.00044346,120]
[342963512,1732229449199,-634.83036765,0.00044382,11]
[342963514,1732229449208,-188.0,0.000444,120]
[342963516,1732229449217,-2212.16,0.00044453,11]
[342963518,1732229449226,-622.88,0.00044453,11]
[342963520,1732229449236,-590.79,0.00044454,11]
[342963522,1732229449246,-1765.22,0.00044454,11]
[342963524,1732229449255,-157.83168427,0.00044454,11]
[342963526,1732229449264,-751.76,0.00044454,2]
[342963528,1732229449274,-1607.83,0.00044454,11]
[342963530,1732229449283,-500.0,0.00044554,11]
[342963532,1732229449292,-1084.09590904,0.0004458,60]
[342963534,1732229449301,-500.0,0.00044602,120]
[342963535,1732229449310,-1989.28502483,0.00044652,15]
[342963536,1732229449320,-1099.03935791,0.00044652,15]
[342963537,1732229449330,-2212.16,0.00044727,11]
[342963538,1732229449340,-622.88,0.00044727,11]
[342963539,1732229449349,-590.79,0.00044728,11]
[342963540,1732229449358,-1765.22,0.00044728,11]
[342963541,1732229449367,-751.76,0.00044728,2]
[342963542,1732229449376,-1607.83,0.00044728,11]
[342963543,1732229449387,-176.89121322,0.00044729,28]
[342963544,1732229449396,-150.0,0.000448,30]
[342963545,1732229449405,-500.0,0.00044828,11]
[342963546,1732229449414,-169.240888,0.0004483,14]
[342963547,1732229449425,-169.240888,0.0004483,14]
[342963548,1732229449439,-166.408516,0.0004483,14]
[342963550,1732229449448,-7058.35602534,0.00044848,31]
[342963552,1732229449457,-1107.064855,0.00044848,14]
[342963554,1732229449467,-1107.064855,0.00044848,14]
[342963556,1732229449477,-166.248804,0.00044848,14]
[342963558,1732229449487,-166.248804,0.00044848,14]
[342963560,1732229449496,-150.0,0.00044934,120]
[342963562,1732229449506,-1327.63,0.0004496,7]
[342963564,1732229449516,-800.0,0.00045,120]
[342963566,1732229449525,-649.44,0.00045,30]
[342963568,1732229449535,-1248.36652513,0.00045,120]
[342963570,1732229449543,-151.0,0.00045,14]
[342963572,1732229449553,-151.0,0.00045,14]
[342963573,1732229449563,-1000.24619,0.00045,60]
[342963576,1732229449573,-1000.0,0.00045,120]
[342963577,1732229449582,-3000.0,0.00045,50]
[342963579,1732229449591,-2212.20894845,0.00045001,11]
[342963581,1732229449600,-622.9602016,0.00045001,11]
[342963583,1732229449610,-591.02,0.00045002,11]
[342963585,1732229449620,-1765.33,0.00045002,11]
[342963587,1732229449630,-751.76,0.00045002,2]
[342963589,1732229449639,-1608.00832534,0.00045002,11]
[342963591,1732229449649,-166.83,0.00045002,2]
[342963593,1732229449658,-500.0,0.00045051,120]
[342963595,1732229449667,-2000.0,0.00045051,120]
[342963597,1732229449678,-500.0,0.00045051,120]
[342963599,1732229449687,-500.0,0.00045051,120]
[342963601,1732229449697,-200.0,0.00045051,120]
[342963603,1732229449706,-185.572498,0.00045051,14]
[342963605,1732229449715,-185.572498,0.00045051,14]
[342963607,1732229449724,-1075.786781,0.00045051,14]
[342963609,1732229449735,-1075.786781,0.00045051,14]
[342963611,1732229449744,-151.0,0.00045051,14]
[342963613,1732229449754,-500.0,0.00045102,11]
[342963615,1732229449763,-150.14,0.0004515,2]
[342963617,1732229449773,-377.03742909,0.00045223,2]
[342963619,1732229449782,-275.7,0.0004526,120]
[342963621,1732229449792,-751.91,0.00045276,2]
[342963623,1732229449802,-203.16,0.00045302,120]
[342963625,1732229449812,-482.26,0.00045376,11]
[342963627,1732229449821,-175.712065,0.00045376,14]
[342963629,1732229449831,-175.712067,0.00045376,14]
[342963631,1732229449840,-13899.98,0.000457,7]
[342963633,1732229449850,-159.83,0.00045753,2]
[342963635,1732229449860,-155.93,0.00045753,2]
[342963637,1732229449869,-155.7,0.00045753,2]
[342963639,1732229449878,-500.0,0.00046,120]
[342963641,1732229449888,-1777.35177388,0.00046,120]
[342963643,1732229449897,-817.64462974,0.00046,120]
[342963645,1732229449906,-929.23,0.0004607,2]
[342963647,1732229449916,-1000.0,0.00046085,2]
[342963649,1732229449933,-764.018,0.00046139,2]
[342963651,1732229449942,-629.0,0.00046139,2]
[342963653,1732229449952,-3748.0,0.00046139,2]
[342963655,1732229449961,-3514.0,0.00046139,2]
[342963657,1732229449971,-150.0,0.00046139,2]
[342963659,1732229449980,-1918.081,0.00046139,2]
[342963661,1732229449990,-13657.0,0.00046139,2]
[342963663,1732229450000,-172.384899,0.00046139,14]
[342963665,1732229450009,-268.49,0.00046223,120]
[342963667,1732229450019,-245.7,0.00046351,7]
[342963669,1732229450028,-150.0,0.00046376,120]
[342963671,1732229450037,-150.0,0.00046494,2]
[342963673,1732229450047,-636.84,0.00046509,120]
[342963675,1732229450056,-1500.0,0.00046575,120]
[342963677,1732229450065,-1259.93306436,0.00046575,120]
[342963679,1732229450074,-150.0,0.00046651,120]
[342963681,1732229450084,-1989.28502483,0.00046693,15]
[342963683,1732229450094,-1099.03935791,0.00046693,15]
[342963685,1732229450103,-377.03742909,0.0004676,2]
[342963687,1732229450112,-176.89121322,0.00046772,28]
[342963689,1732229450121,-151.0,0.00046995,14]
[342963691,1732229450131,-151.0,0.00046995,14]
[342963693,1732229450141,-128985.06,0.00047097,7]
[342963695,1732229450153,-287.36,0.00047204,120]
[342963697,1732229450162,-352.336,0.0004721,120]
[342963699,1732229450174,-739.12125652,0.00047297,2]
[342963701,1732229450185,-150.0,0.00047417,120]
[342963703,1732229450194,-170.27448892,0.00047585,8]
[342963705,1732229450203,-150.0,0.00047688,30]
[342963707,1732229450212,-13477.0,0.00047781,120]
[342963708,1732229450224,-1107.064855,0.00047781,14]
[342963710,1732229450233,-1107.064855,0.00047781,14]
[342963712,1732229450243,-166.248804,0.00047781,14]
[342963715,1732229450253,-166.248804,0.00047781,14]
[342963716,1732229450263,-595.14,0.00047798,120]
[342963718,1732229450272,-595.14,0.00047798,120]
[342963720,1732229450281,-595.14,0.00047798,120]
[342963722,1732229450291,-595.14,0.00047798,120]
[342963724,1732229450300,-595.14,0.00047798,120]
[342963726,1732229450309,-185.572498,0.00047799,14]
[342963728,1732229450318,-185.572498,0.00047799,14]
[342963730,1732229450327,-999.0,0.00047799,120]
[342963732,1732229450339,-1075.786781,0.00047799,14]
[342963734,1732229450348,-1075.786781,0.00047799,14]
[342963736,1732229450358,-151.0,0.00047799,14]
[342963738,1732229450367,-595.14,0.00047799,120]
[342963740,1732229450377,-595.14,0.00047799,120]
[342963742,1732229450386,-595.14,0.00047799,120]
[342963744,1732229450395,-56747.0,0.000478,120]
[342963746,1732229450404,-56747.0,0.000478,120]
[342963748,1732229450414,-56747.0,0.000478,120]
[342963750,1732229450424,-56747.0,0.000478,120]
[342963752,1732229450433,-56747.0,0.000478,120]
[342963754,1732229450443,-56747.0,0.000478,120]
[342963756,1732229450452,-56747.0,0.000478,120]
[342963758,1732229450461,-56747.0,0.000478,120]
[342963760,1732229450470,-56747.0,0.000478,120]
[342963762,1732229450479,-56747.0,0.000478,120]
[342963764,1732229450488,-169.240888,0.000478,14]
[342963766,1732229450497,-169.240888,0.000478,14]
[342963768,1732229450507,-169.240888,0.000478,14]
[342963770,1732229450516,-169.240888,0.000478,14]
[342963772,1732229450525,-169.240888,0.000478,14]
[342963774,1732229450535,-169.240888,0.000478,14]
[342963776,1732229450544,-169.240888,0.000478,14]
[342963778,1732229450553,-169.240878,0.000478,14]
[342963780,1732229450562,-166.408516,0.000478,14]
[342963782,1732229450571,-166.408516,0.000478,14]
[342963784,1732229450580,-166.408516,0.000478,14]
[342963786,1732229450589,-166.408512,0.000478,14]
[342963788,1732229450598,-151.0,0.000478,14]
[342963790,1732229450607,-151.0,0.000478,14]
[342963791,1732229450616,-151.0,0.000478,14]
[342963793,1732229450625,-151.0,0.000478,14]
[342963795,1732229450635,-151.0,0.000478,14]
[342963797,1732229450644,-151.0,0.000478,14]
[342963799,1732229450653,-151.0,0.000478,14]
[342963801,1732229450662,-151.0,0.000478,14]
[342963803,1732229450673,-151.0,0.000478,14]
[342963805,1732229450682,-1107.064855,0.000478,14]
[342963807,1732229450692,-1107.064855,0.000478,14]
[342963809,1732229450701,-1107.064855,0.000478,14]
[342963811,1732229450710,-1107.064849,0.000478,14]
[342963813,1732229450719,-166.248804,0.000478,14]
[342963815,1732229450728,-166.248804,0.000478,14]
[342963817,1732229450737,-166.248804,0.000478,14]
[342963819,1732229450746,-166.248795,0.000478,14]
[342963821,1732229450755,-185.572498,0.000478,14]
[342963823,1732229450765,-185.5725,0.000478,14]
[342963825,1732229450774,-152.45,0.000478,42]
[342963827,1732229450784,-152.45,0.000478,42]
[342963829,1732229450793,-152.45,0.000478,42]
[342963831,1732229450802,-152.45,0.000478,42]
[342963833,1732229450811,-152.45,0.000478,42]
[342963835,1732229450821,-152.45,0.000478,42]
[342963837,1732229450830,-1075.786781,0.000478,14]
[342963839,1732229450840,-1075.786789,0.000478,14]
[342963841,1732229450850,-151.0,0.000478,14]
[342963843,1732229450859,-4900.0,0.000479,17]
[342963845,1732229450868,-600.0,0.00048,120]
[342963847,1732229450878,-1777.35177387,0.00048,120]
[342963849,1732229450887,-817.64462974,0.00048,120]
[342963851,1732229450896,-768.2571201,0.00048,120]
[342963853,1732229450905,-150.0,0.00048266,120]
[342963855,1732229450914,-2000.0,0.00048282,120]
[342963857,1732229450925,-929.23,0.00048334,2]
[342963859,1732229450934,-150.0,0.00048383,120]
[342963861,1732229450943,-150.0,0.00048465,120]
[342963863,1732229450953,-155.09,0.00048518,2]
[342963865,1732229450962,-1989.28502483,0.00048735,15]
[342963867,1732229450971,-1099.03935791,0.00048735,15]
[342963869,1732229450981,-11180.0,0.000488,120]
[342963871,1732229450991,-268.49,0.00048807,120]
[342963873,1732229450999,-176.89121322,0.00048815,28]
[342963875,1732229451009,-500.0,0.00048865,120]
[342963877,1732229451019,-150.0,0.00048896,120]
[342963879,1732229451028,-150.14,0.0004896,2]
[342963881,1732229451038,-10000.0,0.00049,120]
[342963883,1732229451047,-11000.0,0.00049,2]
[342963885,1732229451057,-7241.78747556,0.00049,30]
[342963887,1732229451066,-152.0,0.0004908,4]
[342963889,1732229451075,-629.0,0.00049139,2]
[342963890,1732229451084,-3748.0,0.00049139,2]
[342963891,1732229451093,-3514.0,0.00049139,2]
[342963892,1732229451102,-150.0,0.00049139,2]
[342963893,1732229451111,-9605.374,0.00049139,2]
[342963894,1732229451121,-150.0,0.00049147,120]
[342963895,1732229451130,-936.95,0.00049169,120]
[342963896,1732229451141,-150.0,0.00049261,120]
[342963897,1732229451150,-700.0,0.00049315,36]
[342963898,1732229451159,-4631.0,0.00049429,117]
[342963899,1732229451168,-500.0,0.00049479,120]
[342963900,1732229451178,-500.0,0.00049479,120]
[342963902,1732229451188,-500.0,0.00049479,120]
[342963904,1732229451197,-51244.0,0.00049479,120]
[342963906,1732229451207,-1908.333587,0.0004948,23]
[342963907,1732229451217,-150.0,0.00049494,2]
[342963909,1732229451226,-1000.0,0.000495,23]
[342963912,1732229451236,-1000.0,0.0004952,23]
[342963913,1732229451246,-1000.0,0.0004954,23]
[342963915,1732229451255,-1000.0,0.0004956,23]
[342963917,1732229451264,-1000.0,0.0004958,23]
[342963919,1732229451273,-1000.0,0.000496,23]
[342963921,1732229451282,-1000.0,0.0004962,23]
[342963923,1732229451291,-1000.0,0.0004964,23]
[342963925,1732229451301,-1352.777862,0.0004964,23]
[342963927,1732229451310,-1000.0,0.0004966,23]
[342963929,1732229451319,-1000.0,0.0004966,23]
[342963931,1732229451328,-1000.0,0.0004968,23]
[342963933,1732229451338,-1000.0,0.0004968,23]
[342963935,1732229451346,-1000.0,0.000497,23]
[342963937,1732229451356,-1000.0,0.000497,23]
[342963939,1732229451365,-150.0,0.000497,120]
[342963941,1732229451374,-10875.3752282,0.000497,4]
[342963943,1732229451383,-5490.80074931,0.00049723,4]
[342963945,1732229451392,-9761.34333941,0.00049726,4]
[342963947,1732229451401,-201.19867548,0.00049726,4]
[342963949,1732229451410,-10875.3752282,0.00049759,4]
[342963951,1732229451420,-5490.80074931,0.00049782,4]
[342963953,1732229451429,-10875.3752282,0.00049783,4]
[342963955,1732229451438,-1851.52319496,0.00049791,4]
[342963957,1732229451447,-200.0,0.00049792,4]
[342963959,1732229451456,-595.14,0.00049799,120]
[342963961,1732229451465,-1851.52319496,0.000498,4]
[342963963,1732229451474,-62453.9404901,0.000498,4]
[342963965,1732229451483,-7474.51752401,0.000498,120]
[342963967,1732229451492,-49135.71658488,0.000498,30]
[342963969,1732229451501,-201.19867548,0.00049811,4]
[342963971,1732229451510,-9761.34333941,0.00049814,4]
[342963973,1732229451519,-62453.9404901,0.00049824,4]
[342963975,1732229451528,-62453.9404901,0.00049826,4]
[342963977,1732229451537,-203.16,0.00049832,120]
[342963979,1732229451546,-200.0,0.00049837,4]
[342963981,1732229451555,-9761.34333941,0.00049842,4]
[342963983,1732229451565,-10875.3752282,0.00049846,4]
[342963985,1732229451574,-5490.80074931,0.00049851,4]
[342963987,1732229451582,-1851.52319496,0.00049855,4]
[342963989,1732229451592,-151.92,0.00049855,120]
[342963991,1732229451601,-5490.80074931,0.0004987,4]
[342963993,1732229451610,-62453.9404901,0.00049874,4]
[342963995,1732229451619,-200.0,0.00049889,4]
[342963997,1732229451628,-1851.52319496,0.00049892,4]
[342963999,1732229451638,-200.0,0.00049892,4]
[342964001,1732229451647,-1851.52319496,0.000499,4]
[342964003,1732229451656,-62453.9404901,0.0004991,4]
[342964005,1732229451665,-201.19867548,0.0004991,4]
[342964007,1732229451676,-201.19867548,0.00049922,4]
[342964009,1732229451685,-9761.34333941,0.00049926,4]
[342964011,1732229451694,-5490.80074931,0.00049929,4]
[342964013,1732229451703,-200.0,0.00049937,4]
[342964015,1732229451712,-201.19867548,0.00049943,4]
[342964017,1732229451721,-9761.34333941,0.00049951,4]
[342964018,1732229451730,-200.0,0.0004998,4]
[342964021,1732229451740,-166.08,0.0004998,30]
[342964022,1732229451750,-10875.3752282,0.00049984,4]
[342964024,1732229451759,-200.0,0.00049984,4]
[342964027,1732229451768,-150.5,0.0004999,30]
[342964028,1732229451778,-443.11260091,0.00049999,120]
[342964030,1732229451787,-1404.27695297,0.0005,120]
[342964032,1732229451796,-1000.0,0.0005,30]
[342964034,1732229451805,-650.0,0.0005,120]
[342964036,1732229451815,-385.66261705,0.0005,120]
[342964038,1732229451824,-200.0,0.0005,120]
[342964040,1732229451833,-157.02,0.0005,120]
[342964042,1732229451842,-1050.0,0.0005,120]
[342964044,1732229451852,-50000.0,0.0005,120]
[342964046,1732229451861,-6951.0,0.0005,12]
[342964048,1732229451872,-352.344,0.0005018,120]
[342964050,1732229451881,-1799.06,0.000503,7]
[342964052,1732229451891,-150.0,0.00050337,30]
[342964054,1732229451900,-150.0,0.00050367,120]
[342964056,1732229451909,-296.04,0.00050419,2]
[342964058,1732229451920,-929.23,0.00050598,2]
[342964060,1732229451929,-1000.0,0.00050694,120]
[342964062,1732229451938,-150.0,0.000507,120]
[342964064,1732229451947,-12051.06139522,0.00050754,120]
[342964066,1732229451957,-1989.28502483,0.00050776,15]
[342964068,1732229451967,-1099.03935791,0.00050776,15]
[342964070,1732229451976,-176.89121322,0.00050857,28]
[342964072,1732229451985,-201.6,0.000511,52]
[342964074,1732229451994,-636.84,0.0005116,120]
[342964076,1732229452004,-268.49,0.00051391,120]
[342964078,1732229452013,-1079.0,0.00051479,120]
[342964080,1732229452022,-150.112205,0.00051498,120]
[342964082,1732229452031,-3000.0,0.000515,2]
[342964084,1732229452041,-150.0,0.00051599,120]
[342964086,1732229452050,-150.0,0.0005162,120]
[342964088,1732229452059,-53724.36685715,0.000517,30]
[342964090,1732229452068,-150.112205,0.00051798,120]
[342964092,1732229452077,-287.36,0.00051924,120]
[342964094,1732229452086,-3580.19,0.00052,120]
[342964096,1732229452095,-700.0,0.00052,120]
[342964098,1732229452105,-15735.11738681,0.00052,120]
[342964100,1732229452114,-22234.91637161,0.00052,120]
[342964114,1732229452245,-950.0,0.00052,120]
[342964116,1732229452254,-150.0,0.00052,100]
[342964118,1732229452263,-1000.0,0.00052054,120]
[342964120,1732229452273,-389.539599,0.00052055,120]
[342964122,1732229452282,-389.539599,0.00052055,120]
[342964124,1732229452291,-389.539599,0.00052055,120]
[342964126,1732229452300,-389.539599,0.00052055,120]
[342964128,1732229452309,-389.539599,0.00052055,120]
[342964130,1732229452318,-389.539599,0.00052055,120]
[342964132,1732229452327,-389.539599,0.00052055,120]
[342964134,1732229452336,-389.539599,0.00052055,120]
[342964136,1732229452345,-389.539599,0.00052055,120]
[342964138,1732229452354,-389.539599,0.00052055,120]
[342964139,1732229452363,-389.539599,0.00052055,120]
[342964141,1732229452373,-389.539599,0.00052055,120]
[342964143,1732229452382,-389.539599,0.00052055,120]
[342964145,1732229452391,-389.539599,0.00052055,120]
[342964147,1732229452400,-389.539599,0.00052055,120]
[342964149,1732229452409,-389.539599,0.00052055,120]
[342964151,1732229452418,-389.539599,0.00052055,120]
[342964153,1732229452428,-389.539599,0.00052055,120]
[342964155,1732229452437,-389.539599,0.00052055,120]
[342964156,1732229452445,-389.539599,0.00052055,120]
[342964158,1732229452454,-150.0,0.00052094,120]
[342964160,1732229452463,-629.0,0.00052139,120]